fUSD/lending_fUSD_20260401
["ID","MTS","AMOUNT","RATE_DAILY","PERIOD"]
[419211281,1775019069311,-151.51,0.0004,2]
[419211282,1775019069321,-151.51,0.0004,2]
[419211283,1775019069332,-151.51,0.0004,2]
[419211284,1775019069342,-151.51,0.0004,2]
[419211285,1775019069352,-151.51,0.0004,2]
[419211286,1775019069363,-151.51,0.0004,2]
[419211287,1775019069373,-151.51,0.0004,2]
[419211288,1775019069384,-151.51,0.0004,2]
[419211289,1775019069394,-151.51,0.0004,2]
[419211290,1775019069404,-151.51,0.0004,2]
[419211291,1775019069415,-151.51,0.0004,2]
[419211292,1775019069425,-151.51,0.0004,2]
[419211293,1775019069436,-151.51,0.0004,2]
[419211294,1775019069446,-151.51,0.0004,2]
[419211295,1775019069457,-151.51,0.0004,2]
[419211296,1775019069467,-151.51,0.0004,2]
[419211297,1775019069478,-151.51,0.0004,2]
[419211298,1775019069681,-151.51,0.0004,2]
[419211299,1775019069691,-151.51,0.0004,2]
[419211300,1775019069702,-151.51,0.0004,2]
[419211301,1775019069712,-151.51,0.0004,2]
[419211302,1775019069721,-151.51,0.0004,2]
[419211303,1775019069731,-151.51,0.0004,2]
[419211304,1775019069741,-151.51,0.0004,2]
[419211305,1775019069750,-151.51,0.0004,2]
[419211306,1775019069760,-151.51,0.0004,2]
[419211307,1775019069770,-151.51,0.0004,2]
[419211308,1775019069780,-151.51,0.0004,2]
[419211309,1775019069789,-151.51,0.0004,2]
[419211310,1775019069799,-151.51,0.0004,2]
[419211311,1775019069809,-151.51,0.0004,2]
[419211312,1775019069818,-151.51,0.0004,2]
[419211313,1775019069828,-151.51,0.0004,2]
[419211314,1775019069839,-151.51,0.0004,2]
[419211315,1775019069850,-151.51,0.0004,2]
[419211316,1775019069860,-151.51,0.0004,2]
[419211317,1775019069871,-151.51,0.0004,2]
[419211318,1775019069881,-151.51,0.0004,2]
[419211319,1775019069890,-150.0,0.00040079,7]
[419211320,1775019069900,-1380.0,0.000401,2]
[419211321,1775019069910,-150.0,0.00040133,120]
[419211322,1775019069920,-1000.0,0.00040134,7]
[419211323,1775019069930,-1000.0,0.00040164,7]
[419211324,1775019069941,-150.0,0.00040165,2]
[419211325,1775019069950,-10000.0,0.000402,120]
[419211326,1775019069960,-10000.0,0.000402,120]
[419211327,1775019069970,-993.10976,0.000402,30]
[419211328,1775019069980,-500.0,0.0004023,2]
[419211329,1775019069991,-993.10976,0.000404,30]
[419211330,1775019070001,-1036.0,0.0004041,30]
[419211331,1775019070011,-485.0,0.0004041,30]
[419211332,1775019070020,-1000.0,0.00040416,7]
[419211333,1775019070029,-150.0,0.0004042,120]
[419211334,1775019070039,-475.0,0.00040426,30]
[419211335,1775019070048,-153.0,0.00040426,30]
[419211336,1775019070057,-1076.0,0.00040426,30]
[419211337,1775019070066,-472.0,0.00040431,30]
[419211338,1775019070075,-2531.0,0.00040431,30]
[419211339,1775019070084,-1490.70499641,0.000405,120]
[419211340,1775019070093,-2500.0,0.000405,120]
[419211341,1775019070103,-2500.0,0.000405,120]
[419211342,1775019070114,-1000.0,0.00040507,7]
[419211343,1775019070123,-231.46,0.00040547,120]
[419211344,1775019070132,-246.69093872,0.00040548,120]
[419211345,1775019070142,-550.0,0.00040548,5]
[419211346,1775019070151,-1000.0,0.00040564,7]
[419211347,1775019070160,-805.6,0.00040573,30]
[419211348,1775019070169,-151.0,0.000406,120]
[419211349,1775019070179,-151.0,0.000406,120]
[419211350,1775019070188,-151.0,0.000406,120]
[419211351,1775019070197,-151.0,0.000406,120]
[419211352,1775019070206,-151.0,0.000406,120]
[419211353,1775019070215,-151.0,0.000406,120]
[419211354,1775019070225,-151.0,0.000406,120]
[419211355,1775019070235,-151.0,0.000406,120]
[419211356,1775019070245,-151.0,0.000406,120]
[419211357,1775019070255,-158.73648,0.000406,120]
[419211358,1775019070264,-151.0,0.000406,120]
[419211359,1775019070273,-151.0,0.000406,120]
[419211360,1775019070283,-151.0,0.000406,120]
[419211361,1775019070293,-155.477243,0.000406,120]
[419211362,1775019070303,-178.585789,0.000406,120]
[419211363,1775019070312,-245.956086,0.000406,120]
[419211364,1775019070321,-178.585789,0.000406,120]
[419211365,1775019070331,-245.956086,0.000406,120]
[419211366,1775019070341,-178.585789,0.000406,120]
[419211367,1775019070352,-178.585789,0.000406,120]
[419211368,1775019070361,-245.956086,0.000406,120]
[419211369,1775019070371,-245.956086,0.000406,120]
[419211370,1775019070380,-993.10976,0.000406,30]
[419211371,1775019070390,-151.0,0.000406,120]
[419211372,1775019070399,-151.0,0.000406,120]
[419211373,1775019070409,-151.0,0.000406,120]
[419211374,1775019070419,-151.0,0.000406,120]
[419211375,1775019070428,-151.0,0.000406,120]
[419211376,1775019070438,-151.0,0.000406,120]
[419211377,1775019070448,-151.0,0.000406,30]
[419211378,1775019070457,-151.0,0.000406,30]
[419211379,1775019070466,-151.0,0.000406,120]
[419211380,1775019070476,-151.0,0.000406,120]
[419211381,1775019070485,-151.0,0.000406,120]
[419211382,1775019070495,-151.0,0.000406,120]
[419211383,1775019070504,-151.0,0.000406,120]
[419211384,1775019070514,-151.0,0.000406,120]
[419211385,1775019070526,-151.0,0.000406,120]
[419211386,1775019070536,-37747.7107,0.000406,114]
[419211387,1775019070545,-621.0,0.00040636,2]
[419211388,1775019070555,-1045.0,0.00040636,2]
[419211389,1775019070564,-1346.0,0.00040636,2]
[419211390,1775019070574,-3519.0,0.00040636,2]
[419211391,1775019070583,-1263.0,0.00040636,2]
[419211392,1775019070593,-6016.0,0.00040636,2]
[419211393,1775019070602,-1000.0,0.00040646,7]
[419211394,1775019070611,-1000.0,0.00040651,7]
[419211395,1775019070620,-150.0,0.00040655,120]
[419211396,1775019070630,-151.0,0.00040697,14]
[419211397,1775019070639,-1000.0,0.00040707,7]
[419211398,1775019070648,-1000.0,0.00040786,7]
[419211399,1775019070658,-993.10976,0.000408,30]
[419211400,1775019070668,-1000.0,0.00040816,7]
[419211401,1775019070678,-500.0,0.0004085,14]
[419211402,1775019070687,-500.0,0.0004085,14]
[419211403,1775019070697,-500.0,0.0004085,14]
[419211404,1775019070706,-500.0,0.0004085,14]
[419211405,1775019070715,-500.0,0.0004085,14]
[419211406,1775019070724,-500.0,0.0004085,14]
[419211407,1775019070734,-500.0,0.0004085,14]
[419211408,1775019070744,-350.47635044,0.0004085,14]
[419211409,1775019070753,-3082.2118754,0.0004085,2]
[419211410,1775019070762,-150.0,0.0004085,120]
[419211411,1775019070771,-1000.0,0.00040874,7]
[419211412,1775019070781,-1000.0,0.00040896,7]
[419211413,1775019070791,-8605.62046432,0.000409,120]
[419211414,1775019070811,-200.0,0.000409,17]
[419211415,1775019070822,-153.0,0.000409,120]
[419211416,1775019070833,-285.40491141,0.000409,30]
[419211417,1775019070844,-500.0,0.00040925,120]
[419211418,1775019070856,-151.0,0.00040933,60]
[419211419,1775019070867,-1000.0,0.00040958,7]
[419211420,1775019070877,-3000.0,0.00041,30]
[419211421,1775019070887,-3000.0,0.00041,30]
[419211422,1775019070897,-1005.0,0.00041,30]
[419211423,1775019070907,-5555.11387122,0.00041,30]
[419211424,1775019070918,-2500.0,0.00041,120]
[419211425,1775019070928,-1000.0,0.00041,30]
[419211426,1775019070938,-1000.00853349,0.00041,120]
[419211427,1775019070949,-154.0,0.00041,120]
[419211428,1775019070959,-1902.31,0.00041,120]
[419211429,1775019070970,-1816.96156166,0.00041,30]
[419211430,1775019070979,-7730.48,0.00041,30]
[419211431,1775019070991,-9127.68,0.00041,30]
[419211432,1775019071001,-993.10976,0.00041,30]
[419211433,1775019071010,-151.0,0.00041,120]
[419211434,1775019071021,-151.0,0.00041,120]
[419211435,1775019071031,-168.463139,0.00041,120]
[419211436,1775019071042,-191.294335,0.00041,120]
[419211437,1775019071053,-191.294335,0.00041,120]
[419211438,1775019071064,-168.463139,0.00041,120]
[419211439,1775019071074,-168.463139,0.00041,120]
[419211440,1775019071084,-191.294335,0.00041,120]
[419211441,1775019071094,-400.0,0.00041,120]
[419211442,1775019071105,-168.463139,0.00041,120]
[419211443,1775019071115,-191.294335,0.00041,120]
[419211444,1775019071125,-400.0,0.00041,120]
[419211445,1775019071136,-400.0,0.00041,120]
[419211446,1775019071147,-151.0,0.00041,14]
[419211447,1775019071156,-400.0,0.00041,120]
[419211448,1775019071167,-151.0,0.00041,14]
[419211449,1775019071176,-151.0,0.00041,120]
[419211450,1775019071186,-161.805166,0.00041,120]
[419211451,1775019071196,-161.805166,0.00041,120]
[419211452,1775019071207,-161.805166,0.00041,120]
[419211453,1775019071216,-161.805166,0.00041,120]
[419211454,1775019071226,-420.0,0.00041,120]
[419211455,1775019071236,-420.0,0.00041,120]
[419211456,1775019071247,-420.0,0.00041,120]
[419211457,1775019071258,-420.0,0.00041,120]
[419211458,1775019071269,-151.0,0.00041,120]
[419211459,1775019071279,-175.691598,0.00041,120]
[419211460,1775019071290,-175.691598,0.00041,120]
[419211461,1775019071300,-151.0,0.00041,120]
[419211462,1775019071310,-175.691598,0.00041,120]
[419211463,1775019071320,-151.0,0.00041,120]
[419211464,1775019071329,-151.0,0.00041,120]
[419211465,1775019071340,-151.0,0.00041,120]
[419211466,1775019071351,-175.691598,0.00041,120]
[419211467,1775019071360,-151.0,0.00041,120]
[419211468,1775019071370,-151.0,0.00041,120]
[419211469,1775019071380,-151.0,0.00041,120]
[419211470,1775019071390,-151.0,0.00041,120]
[419211471,1775019071400,-151.0,0.00041,120]
[419211472,1775019071410,-151.0,0.00041,120]
[419211473,1775019071421,-151.0,0.00041,120]
[419211474,1775019071431,-151.0,0.00041,120]
[419211475,1775019071440,-353.860164,0.00041,120]
[419211476,1775019071450,-231.716991,0.00041,120]
[419211477,1775019071459,-196.147739,0.00041,120]
[419211478,1775019071468,-353.860164,0.00041,120]
[419211479,1775019071478,-231.716991,0.00041,120]
[419211480,1775019071487,-196.147739,0.00041,120]
[419211481,1775019071498,-353.860164,0.00041,120]
[419211482,1775019071509,-231.716991,0.00041,120]
[419211483,1775019071518,-196.147739,0.00041,120]
[419211484,1775019071528,-353.860164,0.00041,120]
[419211485,1775019071538,-196.147739,0.00041,120]
[419211486,1775019071547,-231.716991,0.00041,120]
[419211487,1775019071556,-151.0,0.00041,120]
[419211488,1775019071566,-268.345093,0.00041,120]
[419211489,1775019071575,-151.0,0.00041,120]
[419211490,1775019071585,-268.345093,0.00041,120]
[419211491,1775019071595,-151.0,0.00041,120]
[419211492,1775019071604,-268.345093,0.00041,120]
[419211493,1775019071614,-268.345093,0.00041,120]
[419211494,1775019071624,-1000.0,0.00041015,7]
[419211495,1775019071638,-1096.6,0.00041041,30]
[419211496,1775019071648,-1000.0,0.00041059,7]
[419211497,1775019071658,-2013.2,0.00041068,120]
[419211498,1775019071670,-1582.7,0.00041068,120]
[419211499,1775019071680,-700.0,0.00041082,21]
[419211500,1775019071691,-231.46,0.00041095,120]
[419211501,1775019071701,-150.0,0.00041096,30]
[419211502,1775019071712,-228.0,0.00041096,30]
[419211503,1775019071723,-150.0,0.00041096,30]
[419211504,1775019071735,-240.0,0.00041096,30]
[419211505,1775019071746,-150.0,0.00041096,30]
[419211506,1775019071756,-181.0,0.00041096,30]
[419211507,1775019071767,-200.0,0.00041096,30]
[419211508,1775019071779,-301.0,0.00041096,30]
[419211509,1775019071788,-200.0,0.00041096,30]
[419211510,1775019071798,-251.0,0.00041096,30]
[419211511,1775019071808,-856.0,0.00041096,120]
[419211512,1775019071818,-2000.0,0.00041096,60]
[419211513,1775019071829,-2000.0,0.00041096,60]
[419211514,1775019071839,-2000.0,0.00041096,60]
[419211515,1775019071849,-2000.0,0.00041096,60]
[419211516,1775019071859,-2000.0,0.00041096,60]
[419211517,1775019071869,-2000.0,0.00041096,60]
[419211518,1775019071880,-2000.0,0.00041096,60]
[419211519,1775019071892,-2000.0,0.00041096,60]
[419211520,1775019071902,-2000.0,0.00041096,60]
[419211521,1775019071912,-2719.0,0.00041096,60]
[419211522,1775019071922,-150.0,0.00041096,10]
[419211523,1775019071933,-150.0,0.00041096,10]
[419211524,1775019071943,-2037.20340833,0.00041096,10]
[419211525,1775019071953,-1131.0,0.00041096,120]
[419211526,1775019071962,-1000.0,0.00041096,60]
[419211527,1775019071973,-681.0,0.00041096,60]
[419211528,1775019071983,-306.45397,0.00041096,120]
[419211529,1775019071993,-306.45397,0.00041096,120]
[419211530,1775019072002,-306.45397,0.00041096,120]
[419211531,1775019072012,-306.45397,0.00041096,120]
[419211532,1775019072021,-306.45397,0.00041096,120]
[419211533,1775019072031,-306.45397,0.00041096,120]
[419211534,1775019072042,-306.45397,0.00041096,120]
[419211535,1775019072053,-306.45397,0.00041096,120]
[419211536,1775019072063,-1000.0,0.00041096,120]
[419211537,1775019072073,-650.0,0.00041096,10]
[419211538,1775019072085,-273.09,0.00041096,120]
[419211539,1775019072095,-253.666059,0.00041096,120]
[419211540,1775019072106,-439.763631,0.00041096,120]
[419211541,1775019072116,-253.666059,0.00041096,120]
[419211542,1775019072126,-151.0,0.00041096,120]
[419211543,1775019072137,-151.0,0.00041096,120]
[419211544,1775019072147,-439.763631,0.00041096,120]
[419211545,1775019072157,-253.666059,0.00041096,120]
[419211546,1775019072168,-439.763631,0.00041096,120]
[419211547,1775019072178,-235.924091,0.00041096,30]
[419211548,1775019072187,-253.666059,0.00041096,120]
[419211549,1775019072196,-439.763631,0.00041096,120]
[419211550,1775019072206,-235.924091,0.00041096,30]
[419211551,1775019072216,-205.686774,0.00041096,120]
[419211552,1775019072226,-205.686774,0.00041096,120]
[419211553,1775019072235,-235.924091,0.00041096,30]
[419211554,1775019072245,-205.686774,0.00041096,120]
[419211555,1775019072254,-235.924091,0.00041096,30]
[419211556,1775019072264,-205.686774,0.00041096,120]
[419211557,1775019072274,-151.0,0.00041096,120]
[419211558,1775019072283,-151.0,0.00041096,120]
[419211559,1775019072294,-185.336548,0.00041096,120]
[419211560,1775019072303,-167.522663,0.00041096,120]
[419211561,1775019072313,-1004.34,0.00041096,120]
[419211562,1775019072323,-500.0,0.00041096,2]
[419211563,1775019072332,-500.0,0.00041096,2]
[419211564,1775019072342,-500.0,0.00041096,2]
[419211565,1775019072352,-500.0,0.00041096,2]
[419211566,1775019072362,-500.0,0.00041096,2]
[419211567,1775019072372,-500.0,0.00041096,2]
[419211568,1775019072381,-500.0,0.00041096,2]
[419211569,1775019072391,-500.0,0.00041096,2]
[419211570,1775019072401,-500.0,0.00041096,2]
[419211571,1775019072412,-500.0,0.00041096,2]
[419211572,1775019072422,-500.0,0.00041096,2]
[419211573,1775019072432,-500.0,0.00041096,2]
[419211574,1775019072442,-500.0,0.00041096,2]
[419211575,1775019072452,-500.0,0.00041096,2]
[419211576,1775019072463,-500.0,0.00041096,2]
[419211577,1775019072473,-594.89053997,0.00041096,2]
[419211578,1775019072483,-500.0,0.00041096,2]
[419211579,1775019072492,-213.78904197,0.00041104,120]
[419211580,1775019072503,-868.24358161,0.000412,120]
[419211581,1775019072512,-4464.99193245,0.000412,120]
[419211582,1775019072522,-18274.6685793,0.000412,120]
[419211583,1775019072532,-1000.0,0.00041218,14]
[419211584,1775019072542,-1000.0,0.00041276,14]
[419211585,1775019072551,-150.0,0.0004128,120]
[419211586,1775019072561,-1100.0,0.00041356,120]
[419211587,1775019072571,-856.0,0.0004137,120]
[419211588,1775019072580,-273.09,0.0004137,120]
[419211589,1775019072590,-1004.34,0.0004137,120]
[419211590,1775019072599,-1000.0,0.000414,120]
[419211591,1775019072609,-500.0,0.00041488,26]
[419211592,1775019072618,-500.0,0.00041488,26]
[419211593,1775019072628,-500.0,0.00041488,26]
[419211594,1775019072638,-500.0,0.00041488,26]
[419211595,1775019072648,-500.0,0.00041488,26]
[419211596,1775019072658,-500.0,0.00041488,26]
[419211597,1775019072669,-500.0,0.00041488,26]
[419211598,1775019072679,-500.0,0.00041488,26]
[419211599,1775019072689,-500.0,0.00041488,26]
[419211600,1775019072698,-500.0,0.00041488,26]
[419211601,1775019072708,-383.61,0.00041488,26]
[419211602,1775019072718,-2500.0,0.000415,120]
[419211603,1775019072727,-1000.0,0.00041521,14]
[419211604,1775019072737,-150.0,0.00041567,120]
[419211605,1775019072746,-150.0,0.0004158,120]
[419211606,1775019072756,-150.0,0.0004158,120]
[419211607,1775019072766,-150.0,0.0004158,120]
[419211608,1775019072775,-150.0,0.0004158,120]
[419211609,1775019072784,-152.0,0.00041605,9]
[419211610,1775019072794,-231.46,0.00041643,120]
[419211611,1775019072804,-856.0,0.00041644,120]
[419211612,1775019072814,-250.0,0.00041644,10]
[419211613,1775019072824,-1000.0,0.00041644,10]
[419211614,1775019072834,-679.04808524,0.00041644,10]
[419211615,1775019072843,-273.11,0.00041644,120]
[419211616,1775019072853,-1004.34,0.00041644,120]
[419211617,1775019072863,-1090.29780143,0.00041697,2]
[419211618,1775019072873,-1445.64,0.000417,30]
[419211619,1775019072882,-1445.64,0.000417,30]
[419211620,1775019072892,-1445.64,0.000417,30]
[419211621,1775019072901,-500.0,0.00041767,30]
[419211622,1775019072911,-500.0,0.00041767,30]
[419211623,1775019072920,-500.0,0.00041767,30]
[419211624,1775019072930,-214.20886618,0.00041775,14]
[419211625,1775019072939,-1031.37,0.000418,120]
[419211626,1775019072949,-1490.70499641,0.000418,120]
[419211627,1775019072958,-153.0,0.000418,120]
[419211628,1775019072968,-150.0,0.00041827,120]
[419211629,1775019072979,-200.0,0.000419,17]
[419211630,1775019072988,-1024.24998606,0.000419,120]
[419211631,1775019072998,-1100.0,0.00041904,120]
[419211632,1775019073008,-700.0,0.00041904,120]
[419211633,1775019073019,-856.0,0.00041918,120]
[419211634,1775019073031,-200.0,0.00041918,10]
[419211635,1775019073043,-1004.34,0.00041918,120]
[419211636,1775019073054,-150.0,0.00041925,120]
[419211637,1775019073065,-151.0,0.00041933,60]
[419211638,1775019073077,-1000.0,0.00041936,14]
[419211639,1775019073087,-825.0,0.00041969,90]
[419211640,1775019073098,-151.0,0.00041976,90]
[419211641,1775019073109,-253.52176029,0.00041976,90]
[419211642,1775019073119,-500.0,0.00041976,90]
[419211643,1775019073129,-151.0,0.00041997,14]
[419211644,1775019073141,-151.0,0.00041999,60]
[419211645,1775019073151,-151.0,0.00041999,70]
[419211646,1775019073162,-235.75327194,0.00041999,60]
[419211647,1775019073174,-244.476143,0.00041999,70]
[419211648,1775019073184,-500.0,0.00041999,60]
[419211649,1775019073195,-500.0,0.00041999,70]
[419211650,1775019073205,-3000.0,0.00042,30]
[419211651,1775019073216,-154.79,0.00042,120]
[419211652,1775019073226,-2500.0,0.00042,120]
[419211653,1775019073235,-1000.0,0.00042,30]
[419211654,1775019073244,-574.0,0.00042,120]
[419211655,1775019073253,-500.0,0.00042,7]
[419211656,1775019073262,-500.0,0.00042,7]
[419211657,1775019073270,-500.0,0.00042,7]
[419211658,1775019073280,-500.0,0.00042,7]
[419211659,1775019073292,-500.0,0.00042,7]
[419211660,1775019073302,-500.0,0.00042,7]
[419211661,1775019073314,-500.0,0.00042,7]
[419211662,1775019073324,-500.0,0.00042,7]
[419211663,1775019073335,-500.0,0.00042,7]
[419211664,1775019073345,-500.0,0.00042,7]
[419211665,1775019073355,-500.0,0.00042,7]
[419211666,1775019073365,-500.0,0.00042,7]
[419211667,1775019073374,-500.0,0.00042,7]
[419211668,1775019073384,-500.0,0.00042,7]
[419211669,1775019073395,-500.0,0.00042,7]
[419211670,1775019073406,-500.0,0.00042,7]
[419211671,1775019073416,-500.0,0.00042,7]
[419211672,1775019073426,-500.0,0.00042,7]
[419211673,1775019073436,-500.0,0.00042,7]
[419211674,1775019073446,-500.0,0.00042,7]
[419211675,1775019073456,-500.0,0.00042,7]
[419211676,1775019073466,-500.0,0.00042,7]
[419211677,1775019073476,-500.0,0.00042,7]
[419211678,1775019073487,-500.0,0.00042,7]
[419211679,1775019073497,-500.0,0.00042,7]
[419211680,1775019073507,-500.0,0.00042,7]
[419211681,1775019073517,-500.0,0.00042,7]
[419211682,1775019073527,-500.0,0.00042,7]
[419211683,1775019073537,-500.0,0.00042,7]
[419211684,1775019073548,-500.0,0.00042,7]
[419211685,1775019073558,-500.0,0.00042,7]
[419211686,1775019073568,-500.0,0.00042,7]
[419211687,1775019073578,-500.0,0.00042,7]
[419211688,1775019073588,-500.0,0.00042,7]
[419211689,1775019073599,-500.0,0.00042,7]
[419211690,1775019073610,-500.0,0.00042,7]
[419211691,1775019073620,-500.0,0.00042,7]
[419211692,1775019073629,-500.0,0.00042,7]
[419211693,1775019073639,-500.0,0.00042,7]
[419211694,1775019073652,-500.0,0.00042,7]
[419211695,1775019073662,-500.0,0.00042,7]
[419211696,1775019073674,-500.0,0.00042,7]
[419211697,1775019073683,-500.0,0.00042,7]
[419211698,1775019073693,-500.0,0.00042,7]
[419211699,1775019073702,-500.0,0.00042,7]
[419211700,1775019073712,-500.0,0.00042,7]
[419211701,1775019073721,-264.73,0.00042,7]
[419211702,1775019073731,-500.0,0.00042,7]
[419211703,1775019073741,-500.0,0.00042,7]
[419211704,1775019073751,-500.0,0.00042,7]
[419211705,1775019073760,-500.0,0.00042,7]
[419211706,1775019073770,-500.0,0.00042,7]
[419211707,1775019073779,-500.0,0.00042,7]
[419211708,1775019073789,-500.0,0.00042,7]
[419211709,1775019073801,-500.0,0.00042,7]
[419211710,1775019073811,-500.0,0.00042,7]
[419211711,1775019073820,-500.0,0.00042,7]
[419211712,1775019073830,-500.0,0.00042,7]
[419211713,1775019073840,-500.0,0.00042,7]
[419211714,1775019073850,-500.0,0.00042,7]
[419211715,1775019073860,-500.0,0.00042,7]
[419211716,1775019073870,-500.0,0.00042,7]
[419211717,1775019073881,-500.0,0.00042,7]
[419211718,1775019074106,-500.0,0.00042,7]
[419211719,1775019074116,-500.0,0.00042,7]
[419211720,1775019074126,-500.0,0.00042,7]
[419211721,1775019074137,-500.0,0.00042,7]
[419211722,1775019074147,-500.0,0.00042,7]
[419211723,1775019074157,-500.0,0.00042,7]
[419211724,1775019074167,-520.06,0.00042,7]
[419211725,1775019074177,-2136.92,0.00042,60]
[419211726,1775019074187,-7126.81,0.00042,30]
[419211727,1775019074197,-2522.78951189,0.00042,120]
[419211728,1775019074207,-3832.37749404,0.00042,120]
[419211729,1775019074217,-200000.0,0.00042,120]
[419211730,1775019074227,-151.0,0.00042,120]
[419211731,1775019074237,-499.964857,0.00042,120]
[419211732,1775019074247,-1002.143556,0.00042,120]
[419211733,1775019074256,-499.964857,0.00042,120]
[419211734,1775019074266,-1002.143556,0.00042,120]
[419211735,1775019074275,-151.0,0.00042,120]
[419211736,1775019074285,-499.964857,0.00042,120]
[419211737,1775019074294,-151.0,0.00042,30]
[419211738,1775019074304,-839.001389,0.00042,120]
[419211739,1775019074314,-1002.143556,0.00042,120]
[419211740,1775019074324,-499.964857,0.00042,120]
[419211741,1775019074335,-1247.861813,0.00042,120]
[419211742,1775019074345,-151.0,0.00042,120]
[419211743,1775019074355,-839.001389,0.00042,120]
[419211744,1775019074365,-1002.143556,0.00042,120]
[419211745,1775019074375,-1247.861813,0.00042,120]
[419211746,1775019074385,-151.0,0.00042,120]
[419211747,1775019074395,-839.001389,0.00042,120]
[419211748,1775019074405,-151.0,0.00042,120]
[419211749,1775019074415,-892.253268,0.00042,120]
[419211750,1775019074425,-1247.861813,0.00042,120]
[419211751,1775019074434,-1541.735085,0.00042,120]
[419211752,1775019074445,-181.191858,0.00042,120]
[419211753,1775019074454,-839.001389,0.00042,120]
[419211754,1775019074464,-892.253268,0.00042,120]
[419211755,1775019074473,-1247.861813,0.00042,120]
[419211756,1775019074483,-151.0,0.00042,120]
[419211757,1775019074492,-1541.735085,0.00042,120]
[419211758,1775019074502,-892.253268,0.00042,120]
[419211759,1775019074512,-151.0,0.00042,120]
[419211760,1775019074521,-151.0,0.00042,120]
[419211761,1775019074531,-167.533581,0.00042,120]
[419211762,1775019074541,-1541.735085,0.00042,120]
[419211763,1775019074550,-892.253268,0.00042,120]
[419211764,1775019074559,-175.599481,0.00042,120]
[419211765,1775019074569,-151.0,0.00042,120]
[419211766,1775019074579,-167.533581,0.00042,120]
[419211767,1775019074588,-1541.735085,0.00042,120]
[419211768,1775019074598,-175.599481,0.00042,120]
[419211769,1775019074608,-167.533581,0.00042,120]
[419211770,1775019074618,-236.911326,0.00042,120]
[419211771,1775019074628,-175.599481,0.00042,120]
[419211772,1775019074637,-4589.596736,0.00042,30]
[419211773,1775019074647,-167.533581,0.00042,120]
[419211774,1775019074657,-175.599481,0.00042,120]
[419211775,1775019074667,-236.911326,0.00042,120]
[419211776,1775019074677,-4589.596736,0.00042,30]
[419211777,1775019074687,-2959.597666,0.00042,120]
[419211778,1775019074697,-236.911326,0.00042,120]
[419211779,1775019074707,-4589.596736,0.00042,30]
[419211780,1775019074716,-2959.597666,0.00042,120]